[Event "Live Chess"]
[Site "Chess.com"]
[Date "2023.05.20"]
[Round "-"]
[White "azimchess2019"]
[Black "MartinWalker4"]
[Result "0-1"]
[WhiteElo "1362"]
[BlackElo "2075"]
[TimeControl "300"]
[EndTime "12:19:23 PDT"]
[Termination "MartinWalker4 won by checkmate"]

1. d4 {[%clk 0:04:57.9]} 1... Nf6 {[%clk 0:04:58.1]} 2. c4 {[%clk 0:04:57.4]}
2... g6 {[%clk 0:04:56.7]} 3. Nc3 {[%clk 0:04:56.6]} 3... d5 {[%clk 0:04:55.1]}
4. Nf3 {[%clk 0:04:53.6]} 4... Bg7 {[%clk 0:04:53.2]} 5. e3 {[%clk 0:04:51.6]}
5... O-O {[%clk 0:04:49.7]} 6. Be2 {[%clk 0:04:50.9]} 6... c5 {[%clk 0:04:46.6]}
7. O-O {[%clk 0:04:49.7]} 7... cxd4 {[%clk 0:04:43.4]} 8. exd4 {[%clk
0:04:49.6]} 8... Nc6 {[%clk 0:04:41.1]} 9. Be3 {[%clk 0:04:48.4]} 9... Bf5
{[%clk 0:04:30.7]} 10. Rc1 {[%clk 0:04:45.6]} 10... Rc8 {[%clk 0:04:25]} 11. a3
{[%clk 0:04:41.3]} 11... Na5 {[%clk 0:04:20]} 12. cxd5 {[%clk 0:04:37.1]} 12...
Nxd5 {[%clk 0:04:17.3]} 13. Nh4 {[%clk 0:04:29]} 13... Nxc3 {[%clk 0:04:08.8]}
14. bxc3 {[%clk 0:04:28.9]} 14... Be6 {[%clk 0:04:05.8]} 15. Qa4 {[%clk
0:04:23.2]} 15... Bc4 {[%clk 0:04:02.6]} 16. Rfe1 {[%clk 0:04:14]} 16... b5
{[%clk 0:03:59.8]} 17. Qb4 {[%clk 0:04:09.1]} 17... Nc6 {[%clk 0:03:39.2]} 18.
Qb2 {[%clk 0:03:59.7]} 18... Bxe2 {[%clk 0:03:21]} 19. Rxe2 {[%clk 0:03:58.4]}
19... a6 {[%clk 0:03:20]} 20. Nf3 {[%clk 0:03:55]} 20... Na5 {[%clk 0:03:17.4]}
21. Nd2 {[%clk 0:03:51.2]} 21... Nc4 {[%clk 0:03:12.6]} 22. Nxc4 {[%clk
0:03:49.9]} 22... Rxc4 {[%clk 0:03:11]} 23. Rec2 {[%clk 0:03:47.1]} 23... Qc7
{[%clk 0:03:06.9]} 24. g3 {[%clk 0:03:43.4]} 24... Rc8 {[%clk 0:03:05.3]} 25.
Bf4 {[%clk 0:03:42.3]} 25... Qc6 {[%clk 0:02:56.8]} 26. Be3 {[%clk 0:03:33.6]}
26... a5 {[%clk 0:02:53.8]} 27. Qb3 {[%clk 0:03:02.2]} 27... b4 {[%clk
0:02:42.8]} 28. axb4 {[%clk 0:03:00.3]} 28... axb4 {[%clk 0:02:41.1]} 29. Bd2
{[%clk 0:02:57]} 29... Bxd4 {[%clk 0:02:36.5]} 30. Bg5 {[%clk 0:02:46.8]} 30...
e6 {[%clk 0:02:05.2]} 31. Be3 {[%clk 0:02:33.2]} 31... Bxe3 {[%clk 0:02:00]} 32.
fxe3 {[%clk 0:02:33.1]} 32... Qe4 {[%clk 0:01:57.2]} 33. Kf2 {[%clk 0:02:29.1]}
33... R8c5 {[%clk 0:01:45.2]} 34. Rd1 {[%clk 0:02:21.5]} 34... Rf5+ {[%clk
0:01:40.4]} 35. Ke2 {[%clk 0:02:15.2]} 35... Rf3 {[%clk 0:01:18.8]} 36. Rd3
{[%clk 0:02:03.7]} 36... Rf2+ {[%clk 0:01:11.7]} 37. Kxf2 {[%clk 0:01:55.7]}
37... Qxd3 {[%clk 0:01:10.6]} 38. Qa4 {[%clk 0:01:46.4]} 38... bxc3 {[%clk
0:01:00.5]} 39. Qb3 {[%clk 0:01:37.1]} 39... Rc5 {[%clk 0:00:55.5]} 40. g4
{[%clk 0:01:15.4]} 40... h5 {[%clk 0:00:39.5]} 41. h3 {[%clk 0:01:13.2]} 41...
hxg4 {[%clk 0:00:37.3]} 42. hxg4 {[%clk 0:01:13.1]} 42... Rc4 {[%clk 0:00:28.8]}
43. Qb8+ {[%clk 0:01:07.4]} 43... Kg7 {[%clk 0:00:26.6]} 44. Re2 {[%clk
0:00:55.5]} 44... Qe4 {[%clk 0:00:21.1]} 45. Qg3 {[%clk 0:00:50.5]} 45... c2
{[%clk 0:00:19.1]} 46. g5 {[%clk 0:00:32.7]} 46... c1=Q {[%clk 0:00:17.2]} 47.
Qh2 {[%clk 0:00:26]} 47... Rc2 {[%clk 0:00:13.7]} 48. Qh6+ {[%clk 0:00:24.5]}
48... Kg8 {[%clk 0:00:12.6]} 49. Rxc2 {[%clk 0:00:07]} 49... Qcxc2+ {[%clk
0:00:11.1]} 50. Kg3 {[%clk 0:00:05]} 50... Qcg2# {[%clk 0:00:09.2]} 0-1

[Event "Live Chess"]
[Site "Chess.com"]
[Date "2023.05.20"]
[Round "-"]
[White "worldchessleaguelive"]
[Black "Olisingapore"]
[Result "0-1"]
[WhiteElo "1368"]
[BlackElo "1905"]
[TimeControl "300"]
[EndTime "12:19:34 PDT"]
[Termination "Olisingapore won by resignation"]

1. d4 {[%clk 0:04:57.9]} 1... Nf6 {[%clk 0:04:58.8]} 2. Bf4 {[%clk 0:04:55.6]}
2... d5 {[%clk 0:04:57.7]} 3. e3 {[%clk 0:04:54.1]} 3... c5 {[%clk 0:04:57]} 4.
c3 {[%clk 0:04:52.6]} 4... Nc6 {[%clk 0:04:56.2]} 5. Nf3 {[%clk 0:04:51.1]} 5...
Bf5 {[%clk 0:04:55.6]} 6. Be2 {[%clk 0:04:49.2]} 6... e6 {[%clk 0:04:54.7]} 7.
O-O {[%clk 0:04:47.5]} 7... Bd6 {[%clk 0:04:50.7]} 8. Bg3 {[%clk 0:04:42.3]}
8... c4 {[%clk 0:04:48.6]} 9. Nbd2 {[%clk 0:04:40.9]} 9... O-O {[%clk
0:04:47.6]} 10. h3 {[%clk 0:04:39.2]} 10... b5 {[%clk 0:04:47]} 11. a4 {[%clk
0:04:36.4]} 11... a6 {[%clk 0:04:45.9]} 12. axb5 {[%clk 0:04:35.1]} 12... axb5
{[%clk 0:04:45.8]} 13. Rxa8 {[%clk 0:04:33.9]} 13... Qxa8 {[%clk 0:04:45.7]} 14.
Qa1 {[%clk 0:04:32.4]} 14... Bxg3 {[%clk 0:04:35.3]} 15. fxg3 {[%clk 0:04:27.7]}
15... Qb7 {[%clk 0:04:20.8]} 16. Nh4 {[%clk 0:04:21.8]} 16... Ra8 {[%clk
0:04:15]} 17. Qc1 {[%clk 0:04:17.7]} 17... b4 {[%clk 0:03:52.8]} 18. Nxf5 {[%clk
0:04:14.8]} 18... exf5 {[%clk 0:03:51.7]} 19. Rxf5 {[%clk 0:04:03.2]} 19... Ra2
{[%clk 0:03:12.7]} 20. Bf3 {[%clk 0:03:57.7]} 20... Ne7 {[%clk 0:03:05.2]} 21.
Re5 {[%clk 0:03:48.8]} 21... Ng6 {[%clk 0:03:02.8]} 22. Rf5 {[%clk 0:03:22.2]}
22... bxc3 {[%clk 0:02:41.4]} 23. Qxc3 {[%clk 0:03:09.8]} 23... Rxb2 {[%clk
0:02:34.8]} 24. Nxc4 {[%clk 0:03:05.8]} 24... dxc4 {[%clk 0:02:19.8]} 25. Bxb7
{[%clk 0:03:02.3]} 25... Rb1+ {[%clk 0:02:15.6]} 26. Kh2 {[%clk 0:03:01]} 26...
Rxb7 {[%clk 0:02:08.5]} 27. Qxc4 {[%clk 0:03:00.1]} 27... Rb1 {[%clk 0:02:07.5]}
28. Qc8+ {[%clk 0:02:55.7]} 28... Nf8 {[%clk 0:02:06.1]} 29. d5 {[%clk
0:02:52.5]} 29... Rd1 {[%clk 0:01:58.4]} 30. Re5 {[%clk 0:02:25.3]} 30... Rxd5
{[%clk 0:01:54.5]} 31. Rxd5 {[%clk 0:02:21.6]} 31... Nxd5 {[%clk 0:01:50.4]} 32.
e4 {[%clk 0:02:18.9]} 32... Nf6 {[%clk 0:01:44.8]} 33. e5 {[%clk 0:02:15.4]}
33... Nh5 {[%clk 0:01:42.8]} 34. g4 {[%clk 0:02:12.9]} 34... Nf4 {[%clk
0:01:40.1]} 35. Kg3 {[%clk 0:02:08.5]} 35... Ne6 {[%clk 0:01:37.3]} 36. Kf3
{[%clk 0:02:04.7]} 36... g6 {[%clk 0:01:34.3]} 37. h4 {[%clk 0:01:57.5]} 37...
h5 {[%clk 0:01:29.2]} 38. gxh5 {[%clk 0:01:56.1]} 38... gxh5 {[%clk 0:01:25.4]}
39. g4 {[%clk 0:01:55.3]} 39... hxg4+ {[%clk 0:01:24]} 40. Kxg4 {[%clk
0:01:54.5]} 40... Kg7 {[%clk 0:01:21.1]} 41. Qc1 {[%clk 0:01:48.3]} 41... Ng6
{[%clk 0:01:11.5]} 42. Kf5 {[%clk 0:01:42.5]} 42... Nxh4+ {[%clk 0:01:09.4]} 43.
Ke4 {[%clk 0:01:36.8]} 43... Ng6 {[%clk 0:01:04.6]} 44. Qg1 {[%clk 0:01:32.7]}
44... Kg8 {[%clk 0:00:59.8]} 45. Kf5 {[%clk 0:01:30.9]} 45... Kg7 {[%clk
0:00:57.6]} 46. Qg3 {[%clk 0:01:12.2]} 46... Nd4+ {[%clk 0:00:54.2]} 47. Ke4
{[%clk 0:01:07.2]} 47... Ne6 {[%clk 0:00:45.7]} 48. Qa3 {[%clk 0:00:58.9]} 48...
Ng5+ {[%clk 0:00:42.4]} 49. Kf5 {[%clk 0:00:56.8]} 49... Ne6 {[%clk 0:00:37.5]}
50. Qa6 {[%clk 0:00:50.3]} 50... Ne7+ {[%clk 0:00:34.2]} 51. Ke4 {[%clk
0:00:47.9]} 51... Nc5+ {[%clk 0:00:33]} 52. Kf4 {[%clk 0:00:42.5]} 52... Nxa6
{[%clk 0:00:32.6]} 0-1

[Event "Live Chess"]
[Site "Chess.com"]
[Date "2023.05.20"]
[Round "-"]
[White "PiotrD11"]
[Black "TheSmoulderingMaster"]
[Result "0-1"]
[WhiteElo "1349"]
[BlackElo "1725"]
[TimeControl "300"]
[EndTime "12:19:35 PDT"]
[Termination "TheSmoulderingMaster won on time"]

1. e4 {[%clk 0:04:58.1]} 1... c5 {[%clk 0:04:58.9]} 2. d4 {[%clk 0:04:55.7]}
2... cxd4 {[%clk 0:04:57.8]} 3. c3 {[%clk 0:04:55.3]} 3... dxc3 {[%clk
0:04:57.2]} 4. Nxc3 {[%clk 0:04:55.1]} 4... Nc6 {[%clk 0:04:55.3]} 5. Bc4 {[%clk
0:04:53.8]} 5... a6 {[%clk 0:04:54.2]} 6. Nf3 {[%clk 0:04:53]} 6... d6 {[%clk
0:04:52.6]} 7. O-O {[%clk 0:04:47.1]} 7... Nf6 {[%clk 0:04:51.3]} 8. Qe2 {[%clk
0:04:46]} 8... g6 {[%clk 0:04:50.1]} 9. Rd1 {[%clk 0:04:45.5]} 9... Bg7 {[%clk
0:04:49.7]} 10. Bg5 {[%clk 0:04:37.6]} 10... O-O {[%clk 0:04:48.1]} 11. Rac1
{[%clk 0:04:34.7]} 11... Bg4 {[%clk 0:04:46.3]} 12. Qe3 {[%clk 0:04:32.5]} 12...
Qa5 {[%clk 0:04:38.1]} 13. h3 {[%clk 0:04:29.2]} 13... Bxf3 {[%clk 0:04:35.2]}
14. Bxf6 {[%clk 0:04:26.4]} 14... Bxd1 {[%clk 0:04:32.4]} 15. Bxg7 {[%clk
0:04:23.3]} 15... Kxg7 {[%clk 0:04:31.3]} 16. Rxd1 {[%clk 0:04:17.7]} 16... Ne5
{[%clk 0:04:30.5]} 17. Bb3 {[%clk 0:04:07.2]} 17... Rac8 {[%clk 0:04:27]} 18.
Nd5 {[%clk 0:04:01.5]} 18... e6 {[%clk 0:04:23.2]} 19. Nf4 {[%clk 0:03:45]}
19... Rc5 {[%clk 0:04:15.9]} 20. Rxd6 {[%clk 0:03:40.5]} 20... Rfc8 {[%clk
0:04:11.4]} 21. Nxe6+ {[%clk 0:03:12.1]} 21... fxe6 {[%clk 0:04:08.9]} 22. Rxe6
{[%clk 0:03:09.3]} 22... Rc1+ {[%clk 0:04:07.3]} 23. Kh2 {[%clk 0:03:07.8]}
23... Qc7 {[%clk 0:04:04.5]} 24. f4 {[%clk 0:03:00.7]} 24... Nf7 {[%clk
0:03:53.2]} 25. Qd4+ {[%clk 0:02:54.5]} 25... Kg8 {[%clk 0:03:49.2]} 26. Rf6
{[%clk 0:02:40.9]} 26... Rd8 {[%clk 0:03:43.6]} 27. Bxf7+ {[%clk 0:02:35.8]}
27... Kg7 {[%clk 0:03:35.9]} 28. Rd6+ {[%clk 0:02:31.1]} 28... Kxf7 {[%clk
0:03:35.2]} 29. Qf6+ {[%clk 0:02:21.1]} 29... Ke8 {[%clk 0:03:32.2]} 30. Re6+
{[%clk 0:01:57.4]} 30... Kd7 {[%clk 0:03:31.4]} 31. Re7+ {[%clk 0:01:52.7]}
31... Kc8 {[%clk 0:03:30.8]} 32. Rxc7+ {[%clk 0:01:47.8]} 32... Rxc7 {[%clk
0:03:30.7]} 33. Qe6+ {[%clk 0:01:43.7]} 33... Kb8 {[%clk 0:03:28.9]} 34. e5
{[%clk 0:01:39.5]} 34... Rc2 {[%clk 0:03:24]} 35. Qb3 {[%clk 0:01:26.8]} 35...
Rdd2 {[%clk 0:03:22.6]} 36. Qf3 {[%clk 0:01:24]} 36... Rxb2 {[%clk 0:03:21.2]}
37. e6 {[%clk 0:01:23.1]} 37... Re2 {[%clk 0:03:19.4]} 38. f5 {[%clk 0:01:20.2]}
38... gxf5 {[%clk 0:03:16.2]} 39. Qd5 {[%clk 0:01:07]} 39... Rbd2 {[%clk
0:03:09]} 40. Qf3 {[%clk 0:00:47.2]} 40... Rxe6 {[%clk 0:03:02.5]} 41. Qf4+
{[%clk 0:00:40.2]} 41... Red6 {[%clk 0:03:01.5]} 42. Qxf5 {[%clk 0:00:38.9]}
42... Ka8 {[%clk 0:02:59.9]} 43. Qf8+ {[%clk 0:00:37]} 43... Ka7 {[%clk
0:02:58.5]} 44. Qf5 {[%clk 0:00:34.1]} 44... Rc2 {[%clk 0:02:46.8]} 45. Qxc2
{[%clk 0:00:32]} 45... Rc6 {[%clk 0:02:44.9]} 46. Qxh7 {[%clk 0:00:28.2]} 46...
Rd6 {[%clk 0:02:38.4]} 47. Qc7 {[%clk 0:00:26.2]} 47... Rc6 {[%clk 0:02:36.9]}
48. Qe5 {[%clk 0:00:24.9]} 48... b5 {[%clk 0:02:32.7]} 49. Qe7+ {[%clk
0:00:22.4]} 49... Kb6 {[%clk 0:02:31.8]} 50. Qe3+ {[%clk 0:00:21.3]} 50... Ka5
{[%clk 0:02:30.1]} 51. h4 {[%clk 0:00:19.6]} 51... Rc4 {[%clk 0:02:27.4]} 52. g3
{[%clk 0:00:18.4]} 52... Rc2+ {[%clk 0:02:25.5]} 53. Kh3 {[%clk 0:00:17.5]}
53... Rxa2 {[%clk 0:02:23.7]} 54. Qc3+ {[%clk 0:00:14.8]} 54... Kb6 {[%clk
0:02:21.6]} 55. Qf6+ {[%clk 0:00:11.8]} 55... Ka5 {[%clk 0:02:19.9]} 56. Qd8+
{[%clk 0:00:10.9]} 56... Ka4 {[%clk 0:02:18.8]} 57. Qd4+ {[%clk 0:00:08.3]}
57... b4 {[%clk 0:02:17]} 58. Qb6 {[%clk 0:00:05.9]} 58... a5 {[%clk 0:02:14.9]}
59. Qc6+ {[%clk 0:00:04.5]} 59... Ka3 {[%clk 0:02:13.2]} 60. Qb5 {[%clk
0:00:03.5]} 60... a4 {[%clk 0:02:11.3]} 61. h5 {[%clk 0:00:02]} 61... b3 {[%clk
0:02:10.7]} 0-1

[Event "Live Chess"]
[Site "Chess.com"]
[Date "2023.05.20"]
[Round "-"]
[White "Ferrarifan27"]
[Black "chessleanstrategist"]
[Result "1-0"]
[WhiteElo "2080"]
[BlackElo "400"]
[TimeControl "300"]
[EndTime "12:19:35 PDT"]
[Termination "Ferrarifan27 won by resignation"]

1. e4 {[%clk 0:04:59.1]} 1... d6 {[%clk 0:04:57.6]} 2. d4 {[%clk 0:04:58]} 2...
Nf6 {[%clk 0:04:54.5]} 3. Nc3 {[%clk 0:04:56.5]} 3... g6 {[%clk 0:04:48.7]} 4.
Nf3 {[%clk 0:04:53.5]} 4... Bg7 {[%clk 0:04:47.9]} 5. Bg5 {[%clk 0:04:52]} 5...
O-O {[%clk 0:04:45.3]} 6. Qd2 {[%clk 0:04:48.1]} 6... Re8 {[%clk 0:04:25.5]} 7.
O-O-O {[%clk 0:04:45.9]} 7... e5 {[%clk 0:04:14.7]} 8. dxe5 {[%clk 0:04:43.6]}
8... dxe5 {[%clk 0:04:12.6]} 9. Qxd8 {[%clk 0:04:42.2]} 9... Rxd8 {[%clk
0:04:11.3]} 10. Rxd8+ {[%clk 0:04:41.3]} 10... Bf8 {[%clk 0:03:50.7]} 11. Bxf6
{[%clk 0:04:38.7]} 11... Nc6 {[%clk 0:03:39.1]} 12. Re8 {[%clk 0:04:35.6]} 12...
a5 {[%clk 0:03:01.9]} 13. Bb5 {[%clk 0:04:33.7]} 13... Ra7 {[%clk 0:02:48.9]}
14. Rxc8 {[%clk 0:04:25.1]} 1-0

[Event "Live Chess"]
[Site "Chess.com"]
[Date "2023.05.20"]
[Round "-"]
[White "AttackingSnowLeopard"]
[Black "LanceMaster23"]
[Result "1-0"]
[WhiteElo "2018"]
[BlackElo "1863"]
[TimeControl "300"]
[EndTime "12:19:46 PDT"]
[Termination "AttackingSnowLeopard won by resignation"]

1. d4 {[%clk 0:04:58.9]} 1... Nf6 {[%clk 0:04:53.7]} 2. c4 {[%clk 0:04:57.7]}
2... e6 {[%clk 0:04:53.1]} 3. Nf3 {[%clk 0:04:56.4]} 3... d5 {[%clk 0:04:49.9]}
4. Nc3 {[%clk 0:04:55]} 4... Bb4 {[%clk 0:04:49]} 5. Bg5 {[%clk 0:04:53.3]} 5...
c5 {[%clk 0:04:47.7]} 6. cxd5 {[%clk 0:04:49.6]} 6... exd5 {[%clk 0:04:40.3]} 7.
e3 {[%clk 0:04:48.9]} 7... Nc6 {[%clk 0:04:32.5]} 8. Be2 {[%clk 0:04:46.6]} 8...
cxd4 {[%clk 0:04:25.1]} 9. Nxd4 {[%clk 0:04:44.4]} 9... h6 {[%clk 0:04:19.3]}
10. Bh4 {[%clk 0:04:41.1]} 10... Qa5 {[%clk 0:04:09.3]} 11. O-O {[%clk
0:04:38.5]} 11... g5 {[%clk 0:03:14.5]} 12. Bg3 {[%clk 0:04:30.7]} 12... a6
{[%clk 0:03:02.8]} 13. Nxc6 {[%clk 0:04:17.8]} 13... bxc6 {[%clk 0:03:01.1]} 14.
Be5 {[%clk 0:04:17.3]} 14... Be7 {[%clk 0:03:00.4]} 15. f4 {[%clk 0:04:13.1]}
15... g4 {[%clk 0:02:57.5]} 16. Bxf6 {[%clk 0:04:07.6]} 16... Bxf6 {[%clk
0:02:53.8]} 17. Bxg4 {[%clk 0:04:07.2]} 17... Bxc3 {[%clk 0:02:35.6]} 18. bxc3
{[%clk 0:04:03.6]} 18... Qxc3 {[%clk 0:02:35.5]} 19. Bxc8 {[%clk 0:04:02.7]}
19... Rxc8 {[%clk 0:02:24.3]} 20. Qg4 {[%clk 0:03:57.1]} 20... Ke7 {[%clk
0:01:48.9]} 21. Rac1 {[%clk 0:03:49.4]} 21... Qxe3+ {[%clk 0:01:19.6]} 22. Kh1
{[%clk 0:03:46.9]} 22... Kf6 {[%clk 0:01:19.2]} 23. Rfe1 {[%clk 0:03:29.3]}
23... Qd4 {[%clk 0:01:04.7]} 24. Re5 {[%clk 0:03:24.2]} 24... Rhg8 {[%clk
0:00:43.3]} 25. Rf5+ {[%clk 0:03:12.1]} 25... Ke7 {[%clk 0:00:43]} 26. Qh4+
{[%clk 0:03:02.9]} 26... Kd7 {[%clk 0:00:32.9]} 27. Rxf7+ {[%clk 0:02:59.7]} 1-0

[Event "Live Chess"]
[Site "Chess.com"]
[Date "2023.05.20"]
[Round "-"]
[White "JoeRoot66"]
[Black "BillythekidFellowes"]
[Result "1-0"]
[WhiteElo "1933"]
[BlackElo "2036"]
[TimeControl "300"]
[EndTime "12:19:49 PDT"]
[Termination "JoeRoot66 won by checkmate"]

1. e4 {[%clk 0:04:59]} 1... c6 {[%clk 0:04:51.8]} 2. Nf3 {[%clk 0:04:57.3]} 2...
d5 {[%clk 0:04:46.2]} 3. Nc3 {[%clk 0:04:56.4]} 3... Nf6 {[%clk 0:04:20.5]} 4.
e5 {[%clk 0:04:53.7]} 4... Ng8 {[%clk 0:04:18.3]} 5. d4 {[%clk 0:04:52.7]} 5...
Bg4 {[%clk 0:04:14.9]} 6. h3 {[%clk 0:04:50.4]} 6... Bxf3 {[%clk 0:04:09.2]} 7.
Qxf3 {[%clk 0:04:50.3]} 7... Nd7 {[%clk 0:04:08.2]} 8. Bd3 {[%clk 0:04:43.4]}
8... e6 {[%clk 0:04:02.1]} 9. Qg4 {[%clk 0:04:35.3]} 9... Ne7 {[%clk 0:03:45.5]}
10. O-O {[%clk 0:04:27.5]} 10... Ng6 {[%clk 0:03:43.2]} 11. f4 {[%clk
0:04:16.2]} 11... Qb6 {[%clk 0:03:36]} 12. Ne2 {[%clk 0:03:51]} 12... O-O-O
{[%clk 0:03:33.9]} 13. f5 {[%clk 0:03:46.4]} 13... Ngxe5 {[%clk 0:03:26.1]} 14.
Qg3 {[%clk 0:03:28.5]} 14... Nxd3 {[%clk 0:03:18.9]} 15. cxd3 {[%clk 0:03:17.3]}
15... e5 {[%clk 0:02:21.6]} 16. Be3 {[%clk 0:03:04.3]} 16... Qc7 {[%clk
0:02:01.4]} 17. Rae1 {[%clk 0:02:31]} 17... Bd6 {[%clk 0:01:49]} 18. dxe5 {[%clk
0:02:23.3]} 18... Bxe5 {[%clk 0:01:46]} 19. Bf4 {[%clk 0:02:21.9]} 19... f6
{[%clk 0:01:30.2]} 20. d4 {[%clk 0:02:17.5]} 20... Bxf4 {[%clk 0:01:26.9]} 21.
Nxf4 {[%clk 0:02:17.4]} 21... Qb6 {[%clk 0:01:21.7]} 22. Ne6 {[%clk 0:02:10.2]}
22... Rde8 {[%clk 0:01:17.4]} 23. a4 {[%clk 0:01:52.5]} 23... Nf8 {[%clk
0:01:07.5]} 24. a5 {[%clk 0:01:33.3]} 24... Qxa5 {[%clk 0:00:59.8]} 25. Ra1
{[%clk 0:01:23.4]} 25... Qb6 {[%clk 0:00:57.3]} 26. Rxa7 {[%clk 0:01:10.6]}
26... Nxe6 {[%clk 0:00:42.5]} 27. Ra8+ {[%clk 0:01:04.7]} 27... Kd7 {[%clk
0:00:41.4]} 28. fxe6+ {[%clk 0:01:01.5]} 28... Kxe6 {[%clk 0:00:36.7]} 29. Re1+
{[%clk 0:00:54.7]} 29... Kf7 {[%clk 0:00:34.4]} 30. Raa1 {[%clk 0:00:25.3]}
30... Qxd4+ {[%clk 0:00:32.4]} 31. Kh1 {[%clk 0:00:24.8]} 31... Rxe1+ {[%clk
0:00:31.1]} 32. Rxe1 {[%clk 0:00:24]} 32... Re8 {[%clk 0:00:26.4]} 33. Qc7+
{[%clk 0:00:18.7]} 33... Kg6 {[%clk 0:00:12.7]} 34. Rxe8 {[%clk 0:00:16.3]}
34... Qd1+ {[%clk 0:00:12.6]} 35. Kh2 {[%clk 0:00:14.9]} 35... Qd2 {[%clk
0:00:10.8]} 36. Re7 {[%clk 0:00:12.5]} 36... Kf5 {[%clk 0:00:09.3]} 37. Rxg7
{[%clk 0:00:07.1]} 37... Qf4+ {[%clk 0:00:07.4]} 38. Qxf4+ {[%clk 0:00:06.5]}
38... Kxf4 {[%clk 0:00:07.3]} 39. Rxh7 {[%clk 0:00:06.1]} 39... Ke5 {[%clk
0:00:07.2]} 40. Rxb7 {[%clk 0:00:06]} 40... c5 {[%clk 0:00:06.7]} 41. Rc7 {[%clk
0:00:05.5]} 41... c4 {[%clk 0:00:06.2]} 42. Rf7 {[%clk 0:00:05]} 42... Kd4
{[%clk 0:00:06.1]} 43. Rh7 {[%clk 0:00:04.9]} 43... c3 {[%clk 0:00:05.6]} 44.
Rh4+ {[%clk 0:00:04.8]} 44... Kd3 {[%clk 0:00:05.2]} 45. bxc3 {[%clk 0:00:04.7]}
45... Kxc3 {[%clk 0:00:05.1]} 46. Rf4 {[%clk 0:00:04.6]} 46... d4 {[%clk
0:00:05]} 47. Rxf6 {[%clk 0:00:03.9]} 47... d3 {[%clk 0:00:04.9]} 48. Rd6 {[%clk
0:00:03.8]} 48... d2 {[%clk 0:00:04.8]} 49. Rxd2 {[%clk 0:00:03.7]} 49... Kxd2
{[%clk 0:00:04.7]} 50. h4 {[%clk 0:00:03.6]} 50... Ke3 {[%clk 0:00:04.6]} 51. h5
{[%clk 0:00:03.5]} 51... Ke4 {[%clk 0:00:04.2]} 52. h6 {[%clk 0:00:03.4]} 52...
Kf4 {[%clk 0:00:04.1]} 53. h7 {[%clk 0:00:03.2]} 53... Kf5 {[%clk 0:00:04]} 54.
h8=Q {[%clk 0:00:03.1]} 54... Ke4 {[%clk 0:00:03.9]} 55. Qh4+ {[%clk 0:00:03]}
55... Kd3 {[%clk 0:00:03.8]} 56. g4 {[%clk 0:00:02.9]} 56... Kd2 {[%clk
0:00:03.7]} 57. g5 {[%clk 0:00:02.8]} 57... Kc1 {[%clk 0:00:03.6]} 58. g6 {[%clk
0:00:02.7]} 58... Kc2 {[%clk 0:00:03.5]} 59. g7 {[%clk 0:00:02.6]} 59... Kd3
{[%clk 0:00:03.4]} 60. g8=Q {[%clk 0:00:02.5]} 60... Kd2 {[%clk 0:00:03.3]} 61.
Qgg4 {[%clk 0:00:01.4]} 61... Kc2 {[%clk 0:00:03.2]} 62. Qhh5 {[%clk 0:00:01.3]}
62... Kd3 {[%clk 0:00:02.6]} 63. Qgg5 {[%clk 0:00:01.2]} 63... Kc2 {[%clk
0:00:02.5]} 64. Qh3 {[%clk 0:00:01.1]} 64... Kb1 {[%clk 0:00:02.2]} 65. Qgg3
{[%clk 0:00:01]} 65... Kb2 {[%clk 0:00:02.1]} 66. Qhg2+ {[%clk 0:00:00.9]} 66...
Ka1 {[%clk 0:00:01.7]} 67. Q3f2 {[%clk 0:00:00.8]} 67... Kb1 {[%clk 0:00:00.8]}
68. Qfg1# {[%clk 0:00:00.7]} 1-0

[Event "Live Chess"]
[Site "Chess.com"]
[Date "2023.05.20"]
[Round "-"]
[White "alanmike75"]
[Black "domrobson"]
[Result "1-0"]
[WhiteElo "1531"]
[BlackElo "1739"]
[TimeControl "300"]
[EndTime "12:20:08 PDT"]
[Termination "alanmike75 won by checkmate"]

1. e4 {[%clk 0:04:58.2]} 1... e5 {[%clk 0:04:58.9]} 2. Nf3 {[%clk 0:04:56.9]}
2... Nf6 {[%clk 0:04:58.5]} 3. d3 {[%clk 0:04:54.3]} 3... Nc6 {[%clk 0:04:58]}
4. Nc3 {[%clk 0:04:52.3]} 4... Bc5 {[%clk 0:04:55.6]} 5. Be2 {[%clk 0:04:51.2]}
5... d6 {[%clk 0:04:54.5]} 6. O-O {[%clk 0:04:50]} 6... Bg4 {[%clk 0:04:53.6]}
7. Bg5 {[%clk 0:04:48.1]} 7... h6 {[%clk 0:04:52.4]} 8. Bh4 {[%clk 0:04:46.5]}
8... g5 {[%clk 0:04:52.1]} 9. Bg3 {[%clk 0:04:45.4]} 9... Be6 {[%clk 0:04:51.3]}
10. Nd2 {[%clk 0:04:33.5]} 10... a6 {[%clk 0:04:49.3]} 11. Nb3 {[%clk
0:04:32.3]} 11... Ba7 {[%clk 0:04:48.8]} 12. Qd2 {[%clk 0:04:26.7]} 12... Nd7
{[%clk 0:04:38.7]} 13. Rad1 {[%clk 0:04:24.3]} 13... h5 {[%clk 0:04:37.7]} 14.
h3 {[%clk 0:04:22.9]} 14... h4 {[%clk 0:04:36.3]} 15. Bh2 {[%clk 0:04:21.1]}
15... Qe7 {[%clk 0:04:34]} 16. Kh1 {[%clk 0:04:11.4]} 16... O-O-O {[%clk
0:04:32.3]} 17. f3 {[%clk 0:04:10]} 17... Rdg8 {[%clk 0:04:29.9]} 18. Bg1 {[%clk
0:04:08.6]} 18... Bxg1 {[%clk 0:04:23]} 19. Kxg1 {[%clk 0:04:05.8]} 19... g4
{[%clk 0:04:20.4]} 20. fxg4 {[%clk 0:04:03]} 20... Bxg4 {[%clk 0:04:18.4]} 21.
Bxg4 {[%clk 0:03:57.9]} 21... Rxg4 {[%clk 0:04:18.1]} 22. hxg4 {[%clk
0:03:54.4]} 22... h3 {[%clk 0:04:17.7]} 23. g3 {[%clk 0:03:49.2]} 23... h2+
{[%clk 0:04:12.1]} 24. Kh1 {[%clk 0:03:48.1]} 24... Nf6 {[%clk 0:04:10.3]} 25.
Nd5 {[%clk 0:03:37.9]} 25... Nxd5 {[%clk 0:04:07.9]} 26. exd5 {[%clk 0:03:36.4]}
26... Nd8 {[%clk 0:03:54.3]} 27. Rf2 {[%clk 0:03:30.1]} 27... Qd7 {[%clk
0:03:49.6]} 28. Rxh2 {[%clk 0:03:27.3]} 28... Rxh2+ {[%clk 0:03:48.5]} 29. Qxh2
{[%clk 0:03:25.4]} 29... Qxg4 {[%clk 0:03:48.1]} 30. Rf1 {[%clk 0:03:23.8]}
30... b6 {[%clk 0:03:41.8]} 31. Qf2 {[%clk 0:03:21.7]} 31... Qh3+ {[%clk
0:03:38.6]} 32. Kg1 {[%clk 0:03:20.2]} 32... Qh6 {[%clk 0:03:28]} 33. Nd2 {[%clk
0:03:14.6]} 33... Kb7 {[%clk 0:03:26.2]} 34. Ne4 {[%clk 0:03:12.9]} 34... Qg6
{[%clk 0:03:22.6]} 35. Kg2 {[%clk 0:03:09.7]} 35... Qh6 {[%clk 0:03:14.7]} 36.
c4 {[%clk 0:03:06.2]} 36... a5 {[%clk 0:03:12.2]} 37. a3 {[%clk 0:03:04.4]}
37... Qg7 {[%clk 0:03:09.1]} 38. b4 {[%clk 0:03:01.6]} 38... axb4 {[%clk
0:03:06.8]} 39. axb4 {[%clk 0:03:00.1]} 39... Qg4 {[%clk 0:03:06]} 40. c5 {[%clk
0:02:56.8]} 40... dxc5 {[%clk 0:03:03.6]} 41. bxc5 {[%clk 0:02:55.6]} 41... Qd7
{[%clk 0:02:59.1]} 42. c6+ {[%clk 0:02:53.7]} 42... Nxc6 {[%clk 0:02:57.3]} 43.
dxc6+ {[%clk 0:02:52.5]} 43... Qxc6 {[%clk 0:02:57.1]} 44. Qf3 {[%clk
0:02:51.1]} 44... Qc2+ {[%clk 0:02:56]} 45. Rf2 {[%clk 0:02:50.1]} 45... Qb1
{[%clk 0:02:50.5]} 46. Nd6+ {[%clk 0:02:47.8]} 46... Kb8 {[%clk 0:02:50.1]} 47.
Qb7# {[%clk 0:02:45.7]} 1-0